bitfinex/quotes_SOLUSD_20241202
["timestamp","ask_amount","ask_price","bid_price","bid_amount"]
[1733103676591,15.679,238.12,238.0,70.0]
[1733103676790,6.3678,238.14,238.01,0.83792612]
[1733103677794,6.3678,238.14,238.0,70.0]
[1733103677990,20.0,238.11,238.0,70.0]
[1733103678211,20.0,238.1,238.0,70.0]
[1733103679184,20.0,238.1,237.88,55.42006019]
[1733103679185,15.6948,238.19,238.03,19.0009]
[1733103679384,15.6948,238.19,238.04,0.83776679]
[1733103679611,15.6948,238.19,238.06,70.0]
[1733103679910,15.6948,238.19,238.12,70.0]
[1733103680091,0.4870394,238.23,238.13,0.83754425]
[1733103680289,0.4870394,238.23,238.15,70.0]
[1733103680506,0.4870394,238.23,238.16,0.83737227]
[1733103681111,0.4870394,238.23,238.19,70.0]
[1733103681412,0.4870394,238.23,238.2,0.83718809]
[1733103682284,0.4870394,238.23,238.16,0.8372254]
[1733103683990,0.4870394,238.23,238.12,0.8374205]
[1733103685887,0.4870394,238.23,238.15,70.0]
[1733103686093,0.4870394,238.23,238.16,0.83741207]
[1733103686593,0.4870394,238.23,238.18,70.0]
[1733103686793,0.4870394,238.23,238.15,70.0]
[1733103687013,0.4870394,238.23,238.18,70.0]
[1733103687191,0.4870394,238.23,238.19,0.83730492]
[1733103688110,0.4870394,238.23,238.21,70.0]
[1733103688315,0.4870394,238.23,238.22,0.83717484]
[1733103690110,0.4870394,238.23,238.14,70.8372233]
[1733103691095,0.4870394,238.23,238.14,0.8372233]
[1733103691291,0.4870394,238.23,238.12,0.83751308]
[1733103691714,0.4870394,238.23,238.09,0.83760057]
[1733103692224,20.0,238.2,238.09,0.83760057]
[1733103692426,6.0224,238.22,238.05,70.0]
[1733103692427,20.0,238.19,238.06,0.83768378]
[1733103692710,20.0,238.17,238.06,0.83768378]
[1733103693513,20.0,238.17,238.01,70.0]
[1733103693709,20.0,238.17,238.02,0.83783826]
[1733103694114,20.0,238.17,237.98,70.83783294]
[1733103694710,20.0,238.15,237.95,70.0]
[1733103694917,20.0,238.14,237.96,0.83810485]
[1733103696722,20.0,238.14,237.98,70.0]
[1733103696898,20.0,238.14,237.99,0.83796254]
[1733103697318,21.78384464,238.17,237.99,0.83796254]
[1733103697519,20.0,238.16,237.99,0.83796254]
[1733103698193,20.0,238.16,237.9,26.64317619]
[1733103698194,2.4689,237.62,237.53,98.47716154]
[1733103698414,2.4689,237.5,237.25,1.7383061]
[1733103698717,5.0,237.37,237.21,70.0]
[1733103699013,7.4689,237.31,237.17,0.4870394]
[1733103699322,2.4689,237.23,237.17,0.4870394]
[1733103699503,2.4689,237.18,237.06,85.8187]
[1733103699706,2.4689,237.13,237.02,70.0]
[1733103700016,2.4689,237.13,236.92,18.6617]
[1733103700017,2.4689,237.17,237.06,70.0]
[1733103700223,20.0,237.15,237.07,0.84118104]
[1733103700423,20.0,237.13,237.07,0.84118104]
[1733103700623,20.0,237.1,237.04,0.84127302]
[1733103700822,2.4689,237.13,237.04,0.84127302]
[1733103700823,23.09717975,237.09,237.04,0.84127302]
[1733103701001,3.09717975,237.08,237.04,0.84127302]
[1733103701202,213.51237985,237.19,237.07,70.0]
[1733103701523,20.0,237.15,237.08,0.84110334]
[1733103701893,2.4689,237.12,237.01,70.0]
[1733103702097,2.4689,237.1,237.02,0.84136262]
[1733103702301,2.4689,237.08,236.98,0.84141804]
[1733103702924,20.0,237.15,236.97,76.2362]
[1733103702925,2.4689,237.05,236.97,6.2362]
[1733103703516,2.4689,236.97,236.93,0.4870394]
[1733103703708,2.4689,236.95,236.93,0.4870394]
[1733103704796,0.83796254,236.94,236.93,0.4870394]
[1733103704996,2.4689,236.95,236.93,0.4870394]
[1733103705201,5.0,237.05,236.93,0.4870394]
[1733103705202,2.4689,237.01,236.93,0.4870394]
[1733103705499,2.4689,237.03,236.93,0.4870394]
[1733103705705,2.4689,237.03,236.93,1.32876398]
[1733103706026,2.4689,237.08,236.95,70.0]
[1733103706203,0.83796254,237.11,236.96,0.84155553]
[1733103706204,2.4689,237.06,236.96,0.84155553]
[1733103707015,2.4689,237.02,236.93,0.4870394]
[1733103707406,2.4689,237.04,236.93,0.4870394]
[1733103707720,2.4689,237.04,236.95,70.0]
[1733103707933,2.4689,237.04,236.93,1.32874983]
[1733103708105,2.4689,236.99,236.93,0.4870394]
[1733103708304,2.4689,237.01,236.93,0.4870394]
[1733103708902,2.4689,237.03,236.93,0.4870394]
[1733103709098,2.4689,237.06,236.95,70.0]
[1733103709419,2.4689,237.08,236.96,0.84165503]
[1733103710305,2.4689,237.08,236.96,23.776884]
[1733103710505,2.4689,237.08,236.97,0.42415945]
[1733103711630,2.4689,237.1,236.96,24.20112788]
[1733103712330,2.4689,237.1,236.96,0.42424388]
[1733103712511,2.4689,237.02,236.93,0.4870394]
[1733103712711,2.4689,237.0,236.93,0.4870394]
[1733103713510,2.4689,236.96,236.93,0.4870394]
[1733103714324,2.4689,236.94,236.93,0.4870394]
[1733103714806,2.4689,236.96,236.93,0.4870394]
[1733103715002,2.4689,236.98,236.93,0.4870394]
[1733103715206,20.0,236.99,236.93,0.4870394]
[1733103715431,2.4689,237.01,236.93,0.4870394]
[1733103715822,2.4689,236.98,236.93,0.4870394]
[1733103716422,2.4689,236.96,236.93,0.4870394]
[1733103716956,2.4689,236.98,236.93,0.4870394]
[1733103718228,2.4689,236.96,236.93,0.4870394]
[1733103718734,1.05236368,237.01,236.93,0.4870394]
[1733103718735,2.4689,236.98,236.93,0.4870394]
[1733103718919,2.4689,237.01,236.93,0.4870394]
[1733103719121,2.4689,237.03,236.93,0.4870394]
[1733103719324,2.4689,237.05,236.93,0.4870394]
[1733103719522,2.4689,237.02,236.93,0.4870394]
[1733103720042,2.4689,237.0,236.93,0.4870394]
[1733103720922,2.4689,237.04,236.93,0.4870394]
[1733103721119,2.4689,237.04,236.94,0.42469071]
[1733103721338,2.4689,237.02,236.93,0.4870394]
[1733103721949,20.0,237.06,236.93,0.4870394]
[1733103721950,2.4689,236.98,236.93,0.4870394]
[1733103722140,2.4689,236.95,236.93,0.4870394]
[1733103723350,1.05220528,237.01,236.93,0.4870394]
[1733103723526,1.05223659,237.03,236.93,0.4870394]
[1733103724548,1.0522344,237.08,236.93,0.4870394]
[1733103724924,1.0522344,237.08,236.94,0.42451406]
[1733103725124,16.889681,237.1,236.94,0.50681321]
[1733103725325,1.05220248,237.09,236.94,0.50681321]
[1733103725943,20.0,237.06,236.94,0.50681321]
[1733103726122,1.0524255,237.05,236.94,0.50681321]
[1733103727226,1.05234712,237.04,236.94,0.50681321]
[1733103727429,1.05236116,237.06,236.94,0.50681321]
[1733103727630,1.05236116,237.06,236.94,24.28369721]
[1733103727940,5.0,237.18,236.94,24.28369721]
[1733103727941,1.05214939,237.15,236.97,23.776884]
[1733103728140,16.886348,237.15,236.98,0.42397098]
[1733103728322,1.05173883,237.14,236.98,0.42397098]
[1733103728525,16.884441,237.2,236.98,0.42397098]
[1733103728727,5.0,237.17,236.96,6.0861]
[1733103728939,6.05211841,237.16,236.96,6.0861]
[1733103729336,6.05211841,237.16,236.96,6.51055922]
[1733103729545,1.05211841,237.16,236.97,23.776884]
[1733103729824,21.05211841,237.16,236.98,0.4239952]
[1733103730242,1.05211841,237.16,236.98,0.4239952]
[1733103730443,1.05174099,237.19,236.98,0.4239952]
[1733103731447,20.0,237.17,237.01,36.406884]
[1733103731639,20.0,237.17,237.02,0.42376391]
[1733103731640,1.05169074,237.16,237.02,0.42376391]
[1733103731843,1.05169074,237.16,236.99,24.20094721]
[1733103732054,1.05169074,237.16,236.99,0.42406321]
[1733103733557,1.05169074,237.16,237.02,23.776884]
[1733103733855,1.05169074,237.16,237.01,0.42388052]
[1733103735828,1.05169074,237.16,236.97,16.1289]
[1733103736034,20.0,237.13,236.97,16.1289]
[1733103736233,1.05214333,237.12,236.97,16.1289]
[1733103736656,1.05214333,237.12,236.94,0.50681321]
[1733103737163,1.05214333,237.12,236.94,0.93149836]
[1733103737339,1.05214333,237.12,236.97,0.4245245]
[1733103737758,1.05195656,237.14,236.97,0.4245245]
[1733103738869,1.05195656,237.14,236.94,13.13681321]
[1733103738870,20.0,237.12,236.94,0.50681321]
[1733103739045,1.05218134,237.11,236.94,0.50681321]
[1733103739657,0.54536813,237.11,236.93,0.91176504]
[1733103739866,5.0,237.09,236.93,0.4870394]
[1733103740036,20.0,237.05,236.93,0.4870394]
[1733103740349,1.20177814,237.04,236.93,0.4870394]
[1733103740750,20.0,237.03,236.93,0.4870394]
[1733103740942,21.20193636,237.02,236.93,0.4870394]
[1733103742461,26.20193636,237.02,236.93,0.4870394]
[1733103742760,20.0,236.97,236.93,0.4870394]
[1733103742944,20.0,236.95,236.93,0.4870394]
[1733103743141,1.05291898,236.94,236.93,0.4870394]
[1733103743348,20.0,236.91,236.78,0.84226617]
[1733103743547,20.0,236.87,236.78,0.84226617]
[1733103743763,8.84903804,236.86,236.78,0.84226617]
[1733103744064,0.14933316,236.86,236.78,0.84226617]
[1733103744359,3.14574057,236.85,236.78,0.84226617]
[1733103744569,3.29507373,236.84,236.78,0.84226617]
[1733103744736,3.14574057,236.83,236.78,0.84226617]
[1733103744937,20.0,236.83,236.78,0.84226617]
[1733103745162,0.14933316,236.84,236.78,0.84226617]
[1733103745353,23.14528437,236.83,236.78,0.84226617]
[1733103745552,20.0,236.83,236.78,0.84226617]
[1733103745959,0.14933316,236.84,236.78,0.84226617]
[1733103748038,0.14933316,236.84,236.77,6.98608018]
[1733103748239,0.14933316,236.84,236.77,6.1438]
[1733103749057,0.14933316,236.84,236.78,0.84238663]
[1733103752667,0.14933316,236.84,236.77,6.1438]
[1733103752668,0.14933316,236.84,236.77,6.98614339]
[1733103754669,0.14933316,236.84,236.77,19.61614339]
[1733103755963,0.14933316,236.84,236.77,6.98614339]
[1733103757564,0.14933316,236.84,236.77,19.61614339]
[1733103757768,0.14933316,236.84,236.79,12.63]
[1733103757955,1.05254023,236.98,236.83,12.63]
[1733103758270,1.05244054,237.0,236.85,12.63]
[1733103758471,13.09513446,237.06,236.86,0.84195392]
[1733103758472,1.0524424,237.03,236.86,0.84195392]
[1733103759065,21.0524424,237.03,236.86,0.84195392]
[1733103759371,20.0,237.02,236.82,0.84205161]
[1733103759572,20.0,237.0,236.82,0.84205161]
[1733103759783,1.05265519,236.99,236.8,23.776884]
[1733103760074,1.05265519,236.99,236.81,0.84213574]
[1733103760276,1.05265519,236.99,236.79,23.776884]
[1733103760481,1.05265519,236.99,236.8,0.84215814]
[1733103761475,1.05265519,236.99,236.81,23.776884]
[1733103761774,1.052521,236.98,236.82,0.8420168]
[1733103762014,1.052521,236.98,236.78,0.84215836]
[1733103762287,1.052521,236.98,236.77,6.1438]
[1733103762288,20.0,236.95,236.77,6.1438]
[1733103762578,21.05294563,236.94,236.77,6.1438]
[1733103763178,1.05294563,236.94,236.78,0.8423502]
[1733103763349,1.05294563,236.94,236.77,6.1438]
[1733103763350,1.05287569,236.93,236.77,6.1438]
[1733103763861,1.05287569,236.93,236.67,6.6546]
[1733103763862,20.0,236.9,236.67,6.6546]
[1733103764174,20.0,236.86,236.67,7.49727675]
[1733103764371,1.05339279,236.85,236.67,7.49727675]
[1733103764765,21.05339279,236.85,236.67,6.6546]
[1733103764977,20.0,236.83,236.66,16.1415]
[1733103765278,1.05348395,236.82,236.66,16.1415]
[1733103765452,21.05348395,236.82,236.66,16.1415]
[1733103766289,6.05348395,236.82,236.61,0.84278716]
[1733103766589,20.0,236.79,236.61,0.84278716]
[1733103766890,1.0536017,236.78,236.61,0.84278716]
[1733103767470,0.39,236.75,236.61,0.84278716]
[1733103769165,20.0,236.72,236.61,0.84278716]
[1733103770774,1.05352319,236.74,236.61,0.84278716]
[1733103770977,20.0,236.72,236.61,0.84278716]
[1733103771699,1.75930251,236.81,236.61,0.84278716]
[1733103771871,20.0,236.72,236.61,0.84278716]
[1733103772586,20.0,236.83,236.61,0.84278716]
[1733103772793,1.05340442,236.82,236.61,0.84278716]
[1733103773098,20.0,236.73,236.63,12.67]
[1733103773281,20.0,236.73,236.64,0.84267337]
[1733103773479,1.05340442,236.82,236.64,0.84267337]
[1733103773683,16.907404,236.8,236.64,0.84267337]
[1733103773884,16.907404,236.8,236.6,6.6546]
[1733103773885,1.05344263,236.79,236.61,13.5127541]
[1733103774704,20.0,236.77,236.6,6.6546]
[1733103774879,1.0537366,236.76,236.6,6.6546]
[1733103776793,1.0537366,236.76,236.61,0.84296825]
[1733103777383,1.0537366,236.76,236.6,6.6546]
[1733103777574,1.0537366,236.76,236.6,19.3246]
[1733103777772,1.0537366,236.76,236.61,0.84295221]
[1733103778380,1.0537366,236.76,236.61,13.51295221]
[1733103778580,1.0537366,236.76,236.61,0.84295221]
[1733103779090,1.0537366,236.76,236.61,70.84295221]
[1733103779296,21.0533967,236.77,236.62,12.67]
[1733103779596,1.05334242,236.76,236.63,0.84267393]
[1733103779805,18.68506671,236.8,236.64,12.67]
[1733103779995,18.68506671,236.8,236.63,0.84267393]
[1733103779996,1.05324592,236.79,236.63,0.84267393]
[1733103780201,12.67,236.77,236.63,0.84267393]
[1733103780396,1.05365764,236.76,236.6,6.6546]
[1733103780597,20.0,236.74,236.61,0.84291712]
[1733103780803,1.05358699,236.73,236.61,0.84291712]
[1733103781197,20.0,236.74,236.61,0.84291712]
[1733103781397,20.0,236.74,236.61,13.51291712]
[1733103781782,1.05351603,236.73,236.61,13.51291712]
[1733103781987,1.05352,236.73,236.61,13.51291712]
[1733103782205,1.05352,236.73,236.61,0.84291712]
[1733103783090,20.0,236.74,236.61,0.84291712]
[1733103783498,1.05351617,236.73,236.61,0.84291712]
[1733103783887,1.05351617,236.73,236.6,6.6546]
[1733103784093,21.05351617,236.73,236.6,6.6546]
[1733103788315,20.0,236.71,236.6,6.6546]
[1733103791699,20.0,236.71,236.55,15.776]
[1733103791700,20.0,236.68,236.55,15.776]
[1733103791901,1.05412242,236.67,236.55,15.776]
[1733103793307,5.0,236.59,236.41,6.2279]
[1733103793491,20.0,236.6,236.41,6.2279]
[1733103793492,20.0,236.55,236.41,6.2279]
[1733103793692,21.05479024,236.54,236.41,6.2279]
[1733103794312,5.0,236.47,236.23,5.0]
[1733103794500,20.0,236.43,236.23,5.0]
[1733103794705,21.05534042,236.42,236.23,5.0]
[1733103794918,20.0,236.39,236.22,1.3312069]
[1733103795215,20.0,236.36,236.22,0.4870394]
[1733103795395,1.05555812,236.35,236.22,0.4870394]
[1733103796217,1.0554132,236.37,236.22,0.4870394]
[1733103796615,1.0554132,236.37,236.22,1.33136295]
[1733103797214,1.05536003,236.41,236.22,14.00136295]
[1733103797600,1.05536003,236.41,236.22,19.00136295]
[1733103798702,1.05536003,236.41,236.22,14.00136295]
[1733103798908,1.05536003,236.41,236.22,19.00136295]
[1733103799698,1.05526695,236.43,236.23,23.776884]
[1733103800001,20.0,236.42,236.24,0.844099]
[1733103800329,1.05526695,236.43,236.22,0.4870394]
[1733103800330,20.0,236.38,236.22,0.4870394]
[1733103800619,5.0,236.33,236.22,0.4870394]
[1733103800835,20.0,236.3,236.22,0.4870394]
[1733103801127,1.05583425,236.29,236.22,0.4870394]
[1733103802221,20.0,236.28,236.22,0.4870394]
[1733103802421,1.05595495,236.27,236.22,0.4870394]
[1733103804416,20.0,236.24,236.22,0.4870394]
[1733103804622,21.05618915,236.23,236.22,0.4870394]
[1733103805828,26.05618915,236.23,236.22,0.4870394]
[1733103806027,20.0,236.22,236.02,6.4254]
[1733103806330,25.0,236.2,236.02,6.4254]
[1733103806627,20.0,236.16,236.02,6.4254]
[1733103806798,20.0,236.14,236.02,6.4254]
[1733103807001,1.05656201,236.13,236.02,6.4254]
[1733103807201,1.05656201,236.13,235.99,0.4870394]
[1733103807422,1.05656201,236.13,235.99,5.4870394]
[1733103807723,20.0,236.14,235.99,19.0024346]
[1733103808101,20.0,236.23,235.99,19.0024346]
[1733103808300,1.05619444,236.22,235.99,19.0024346]
[1733103808503,1.05619444,236.22,236.02,17.67]
[1733103808705,1.05619444,236.22,236.03,0.84487028]
[1733103809005,1.0560466,236.25,236.03,0.84487028]
[1733103809602,1.0560466,236.25,236.09,15.6594]
[1733103810008,0.58193162,236.24,236.11,7.55173454]
[1733103810208,1.05596076,236.23,236.11,7.55173454]
[1733103811110,1.05620948,236.22,236.11,7.55173454]
[1733103811437,20.0,236.19,236.11,0.98153454]
[1733103811636,1.05638036,236.18,236.11,0.98153454]
[1733103813711,5.0,236.17,236.11,0.98153454]
[1733103813912,20.0,236.14,236.11,0.98153454]
[1733103814121,1.05655625,236.13,236.11,0.98153454]
[1733103814736,1.0563324,236.19,236.11,0.98153454]
[1733103816237,5.0,236.12,236.11,0.98153454]
[1733103816532,6.05691045,236.12,236.11,0.98153454]
[1733103816836,5.0,236.08,235.99,0.4870394]
[1733103817015,25.0,236.04,235.99,0.4870394]
[1733103817217,5.0,236.02,235.99,0.4870394]
[1733103817421,20.0,236.0,235.99,0.4870394]
[1733103817932,25.0,236.0,235.99,0.4870394]
[1733103818336,30.0,236.0,235.99,0.4870394]
[1733103818656,31.05760347,236.0,235.99,0.4870394]
[1733103819435,25.0,235.93,235.72,22.6757]
[1733103819733,20.0,235.89,235.72,22.6757]
[1733103819942,1.05767251,235.88,235.72,22.6757]
[1733103820415,1.05767251,235.88,235.75,1.3331668]
[1733103820618,1.05740596,235.95,235.76,26.73472336]
[1733103820945,1.05740596,235.95,235.8,5.0]
[1733103821234,5.0,236.07,235.82,5.0]
[1733103821235,1.05715698,236.04,235.82,5.0]
[1733103821443,1.05715698,236.04,235.83,0.84564439]
[1733103822224,1.05703132,236.03,235.83,70.84564439]
[1733103822435,5.0,236.15,235.86,5.0]
[1733103822436,1.05683735,236.06,235.86,5.0]
[1733103822636,1.05683735,236.06,235.84,5.0]
[1733103823025,1.05683735,236.06,235.82,5.84565506]
[1733103823821,1.05683735,236.06,235.85,5.0]
[1733103824043,1.05683735,236.06,235.86,0.84551529]
[1733103824240,7.90077574,236.1,235.86,0.84551529]
[1733103824417,1.05688017,236.09,235.87,5.0]
[1733103824743,6.05688017,236.09,235.84,5.0]
[1733103824931,5.0,236.07,235.84,5.0]
[1733103825113,1.05707378,236.06,235.84,5.0]
[1733103825435,1.05707378,236.06,235.84,5.84566097]
[1733103825640,21.05707378,236.06,235.87,5.0]
[1733103825941,21.05707378,236.06,235.88,0.84545279]
[1733103826139,1.05707378,236.06,235.9,6.1276]
[1733103826320,1.05672839,236.12,235.9,6.97298271]
[1733103827824,1.05672839,236.12,235.93,5.0]
[1733103828050,1.05650097,236.19,235.95,5.0]
[1733103828344,5.0,236.16,235.91,15.8322]
[1733103828549,1.05673958,236.15,235.91,15.8322]
[1733103828725,5.0,236.09,235.91,15.8322]
[1733103828924,1.05703273,236.08,235.91,15.8322]
[1733103829344,0.39,235.95,235.91,15.8322]
[1733103830615,20.94697975,236.05,235.91,15.8322]
[1733103830816,20.0,236.03,235.91,15.8322]
[1733103831130,20.0,235.99,235.84,6.0217]
[1733103831442,1.0573479,235.98,235.84,6.0217]
[1733103831822,20.0,235.97,235.84,6.0217]
[1733103832022,20.0,235.93,235.84,6.0217]
[1733103832323,1.05756282,235.92,235.84,6.0217]
[1733103832933,1.05756282,235.92,235.82,15.9981]
[1733103834134,20.0,235.91,235.82,15.9981]
[1733103834439,1.05765147,235.9,235.82,15.9981]
[1733103835317,1.05755799,235.89,235.82,15.9981]
[1733103835643,1.05756272,235.92,235.82,15.9981]
[1733103836443,1.05755538,235.91,235.82,16.3293572]
[1733103837247,21.05755538,235.91,235.82,0.3312572]
[1733103839951,1.05755538,235.91,235.82,0.3312572]
[1733103840559,1.05743113,235.95,235.82,0.3312572]
[1733103840932,1.05728097,236.02,235.82,0.3312572]
[1733103841249,0.58193162,235.96,235.82,0.3312572]
[1733103841463,1.0573874,235.95,235.82,0.3312572]
[1733103842252,20.0,235.93,235.82,0.3312572]
[1733103842427,1.05757725,235.92,235.82,0.3312572]
[1733103843053,1.05746423,235.96,235.82,0.3312572]
[1733103843256,1.0573256,236.03,235.82,0.3312572]
[1733103843551,0.58193162,236.02,235.82,0.3312572]
[1733103843859,5.0,236.0,235.82,0.3312572]
[1733103844030,1.05742662,235.99,235.82,0.3312572]
[1733103844359,5.0,235.95,235.82,0.3312572]
[1733103844536,21.05762558,235.94,235.82,0.3312572]
[1733103844867,1.05762558,235.94,235.82,0.3312572]
[1733103845045,5.0,236.01,235.82,0.3312572]
[1733103845241,1.05740484,236.0,235.82,0.3312572]
[1733103845930,5.0,235.97,235.82,0.3312572]
[1733103846129,20.0,235.94,235.82,0.3312572]
[1733103846356,1.0575832,235.93,235.82,0.3312572]
[1733103847260,1.05750557,235.92,235.82,0.3312572]
[1733103848256,1.05744763,235.95,235.82,0.3312572]
[1733103848448,134.7,236.32,235.82,0.3312572]
[1733103848449,0.58193162,235.94,235.82,0.3312572]
[1733103848656,1.0575323,235.93,235.82,0.3312572]
[1733103849049,5.0,235.91,235.82,0.3312572]
[1733103849364,1.05786653,235.9,235.82,0.3312572]
[1733103849663,20.0,235.87,235.82,0.3312572]
[1733103849960,21.0579158,235.86,235.82,0.3312572]
[1733103850328,1.0579158,235.86,235.82,0.3312572]
[1733103850961,1.05786541,235.85,235.82,0.3312572]
[1733103851857,1.05789553,235.84,235.82,0.3312572]
[1733103852942,1.05787359,235.83,235.82,0.3312572]
[1733103853362,1.05780179,235.85,235.82,0.3312572]
[1733103853769,1.05765727,235.95,235.82,0.3312572]
[1733103855334,1.05748287,235.94,235.83,6.2512]
[1733103855550,1.63941449,235.94,235.83,6.2512]
[1733103855754,0.58193162,235.94,235.83,6.2512]
[1733103856363,0.58193162,235.94,235.84,15.8609]
[1733103860370,0.58193162,235.94,235.85,0.84569434]
[1733103860742,1.77872938,236.03,235.85,0.84569434]
[1733103860971,1.05691865,236.09,235.85,0.84569434]
[1733103861169,5.0,236.07,235.84,15.8609]
[1733103861358,1.05714831,236.06,235.84,15.8609]
[1733103861872,25.0,236.04,235.84,15.8609]
[1733103862069,20.0,236.0,235.84,15.8609]
[1733103862247,21.05734386,235.99,235.84,15.8609]
[1733103862863,1.05734386,235.99,235.84,15.8609]
[1733103863073,1.05713781,236.04,235.84,15.8609]
[1733103864548,1.05713781,236.04,235.85,12.67]
[1733103864852,1.05713781,236.04,235.84,15.8609]
[1733103865556,2.84472093,236.04,235.84,15.8609]
[1733103866568,20.0,236.0,235.84,15.8609]
[1733103866777,1.05703301,235.99,235.84,15.8609]
[1733103867174,21.05705511,236.06,235.84,15.8609]
[1733103867744,20.0,236.05,235.84,15.8609]
[1733103867946,1.05712787,236.04,235.85,6.2722]
[1733103868163,1.05712787,236.04,235.85,7.1178022]
[1733103868571,1.05712787,236.04,235.86,15.9512]
[1733103868952,1.05689355,236.03,235.86,15.9512]
[1733103870673,1.05689355,236.03,235.87,6.5401]
[1733103872787,6.54756723,236.08,235.87,6.5401]
[1733103872788,1.05694456,236.07,235.87,6.5401]
[1733103873596,1.05690755,236.06,235.88,0.84552604]
[1733103873970,1.05690755,236.06,235.87,6.5401]
[1733103874160,21.05690755,236.06,235.87,6.5401]
[1733103874571,20.0,236.05,235.87,6.5401]
[1733103874784,21.05702009,236.04,235.87,6.5401]
[1733103874981,20.0,236.03,235.87,6.5401]
[1733103875168,1.05704674,236.02,235.87,6.5401]
[1733103877089,1.05695384,236.01,235.87,6.5401]
[1733103878080,1.05696021,236.0,235.87,6.5401]
[1733103878373,1.0569348,236.03,235.87,6.5401]
[1733103878790,21.0569348,236.03,235.87,6.5401]
[1733103879301,1.0569348,236.03,235.87,6.5401]
[1733103880079,1.0569348,236.03,235.89,6.4044]
[1733103882685,21.0569348,236.03,235.89,6.4044]
[1733103883274,20.0,236.02,235.89,6.4044]
[1733103883473,20.0,236.0,235.89,6.4044]
[1733103883662,6.54756723,236.03,235.89,6.3433]
[1733103883663,20.0,235.98,235.89,6.3433]
[1733103883867,1.05737455,235.97,235.89,6.3433]
[1733103884387,20.0,235.96,235.89,6.3433]
[1733103884593,20.0,235.96,235.88,15.3276]
[1733103884594,21.05750276,235.95,235.88,15.3276]
[1733103884896,20.0,235.91,235.8,15.1436]
[1733103885069,1.05771737,235.9,235.8,15.1436]
[1733103886670,1.05771737,235.9,235.8,21.5119]
[1733103890688,2.88741526,235.9,235.8,21.5119]
[1733103890889,1.05743684,235.98,235.8,21.5119]
[1733103891097,7.60500407,235.98,235.8,21.5119]
[1733103891275,1.05743684,235.98,235.8,21.5119]
[1733103891990,20.0,235.96,235.8,21.5119]
[1733103892167,1.05740621,235.95,235.8,21.5119]
[1733103893195,1.0574142,235.94,235.8,21.5119]
[1733103893704,7.60507408,235.99,235.8,21.5119]
[1733103894289,20.0,235.97,235.8,21.5119]
[1733103894506,21.05738683,235.96,235.8,21.5119]
[1733103894879,1.05738683,235.96,235.8,21.5119]
[1733103895094,1.05730209,236.01,235.8,21.5119]
[1733103895291,7.60486932,236.01,235.8,21.5119]
[1733103896002,20.0,235.98,235.8,21.5119]
[1733103896201,1.05734536,235.97,235.8,21.5119]
[1733103896612,20.0,235.94,235.8,21.5119]
[1733103896812,1.05755421,235.93,235.8,21.5119]
[1733103897478,1.05734619,235.96,235.8,21.5119]
[1733103897880,1.05734619,235.96,235.8,22.35773726]
[1733103898104,1.05715059,236.02,235.8,22.35773726]
[1733103898793,1.05715059,236.02,235.8,21.5119]
[1733103899185,1.05715059,236.02,235.81,0.84572101]
[1733103899186,20.0,235.99,235.81,0.84572101]
[1733103899392,1.0571632,235.98,235.81,0.84572101]
[1733103899804,1.0571632,235.98,235.83,16.0994]
[1733103900109,1.0571632,235.98,235.84,6.1721]
[1733103900316,1.05703647,236.03,235.84,6.1721]
[1733103901184,1.8304665,236.04,235.88,6.3628]
[1733103901385,39.2854034,236.12,235.81,31.9610403]
[1733103901386,65.47567233,236.17,236.02,6.3628]
[1733103901582,251.43848237,236.26,236.02,6.3628]
[1733103901583,5.0,236.22,236.02,6.3628]
[1733103902011,1.85975111,236.14,236.0,2.54187629]
[1733103902310,0.03296048,236.14,235.86,24.62227905]
[1733103902889,0.03296048,236.14,235.88,12.67]
[1733103903095,0.03296048,236.14,235.89,0.84550871]
[1733103903395,20.03296048,236.14,235.89,0.84550871]
[1733103903593,26.83216156,236.14,235.87,0.84532227]
[1733103903786,20.0,236.11,235.87,0.84532227]
[1733103904108,20.0,236.11,235.83,0.84556304]
[1733103905006,20.0,236.11,235.84,19.0625]
[1733103905207,20.0,236.11,235.85,16.60822882]
[1733103905383,1.83216156,236.14,235.87,12.67]
[1733103905587,21.83216156,236.14,235.88,0.84539819]